[Event "Titled Tuesday Blitz August 22 Early 2023"]
[White "Portela Peleteiro, Alberto"]
[Black "Starozhilov, Leonid"]
[WhiteFideId "22276106"]
[BlackFideId "14106752"]
[WhiteElo "2560"]
[BlackElo "2746"]
[Result "0-1"]
[Round "11"]
[TimeControl "180+1"]
[Date "2023.08.22"]
[WhiteClock "0:00:07"]
[BlackClock "0:00:16"]
[Board "47"]

1. e4 {[%clk 0:03:00]}  g6 {[%clk 0:02:59]} 2. d4 {[%clk 0:03:00]}  Bg7 {[%clk 0:02:59]} 3. Nc3 {[%clk 0:03:01]}  d6 {[%clk 0:02:59]} 4. f4 {[%clk 0:03:02]}  Nf6 {[%clk 0:02:59]} 5. Nf3 {[%clk 0:03:01]}  O-O {[%clk 0:02:59]} 6. e5 {[%clk 0:03:00]}  dxe5 {[%clk 0:02:59]} 7. fxe5 {[%clk 0:03:00]}  Nd5 {[%clk 0:03:00]} 8. Bc4 {[%clk 0:03:01]}  Be6 {[%clk 0:02:50]} 9. Qe2 {[%clk 0:02:42]}  Nc6 {[%clk 0:02:03]} 10. O-O {[%clk 0:02:42]}  Nxc3 {[%clk 0:01:40]} 11. bxc3 {[%clk 0:02:42]}  Bxc4 {[%clk 0:01:41]} 12. Qxc4 {[%clk 0:02:43]}  Na5 {[%clk 0:01:41]} 13. Qd3 {[%clk 0:02:35]}  Qd5 {[%clk 0:01:39]} 14. Ba3 {[%clk 0:02:30]}  Rfe8 {[%clk 0:01:29]} 15. Rae1 {[%clk 0:01:45]}  Nc4 {[%clk 0:01:24]} 16. Bc1 {[%clk 0:00:17]}  f6 {[%clk 0:01:24]} 17. e6 {[%clk 0:00:15]}  Rad8 {[%clk 0:01:16]} 18. Re4 {[%clk 0:00:15]}  Nd6 {[%clk 0:01:09]} 19. Re2 {[%clk 0:00:15]}  Qxa2 {[%clk 0:01:08]} 20. Rfe1 {[%clk 0:00:15]}  Qc4 {[%clk 0:01:08]} 21. h4 {[%clk 0:00:13]}  b5 {[%clk 0:00:59]} 22. h5 {[%clk 0:00:13]}  Qxd3 {[%clk 0:00:53]} 23. cxd3 {[%clk 0:00:14]}  g5 {[%clk 0:00:36]} 24. g4 {[%clk 0:00:13]}  h6 {[%clk 0:00:36]} 25. Ra2 {[%clk 0:00:13]}  Ra8 {[%clk 0:00:34]} 26. Ra6 {[%clk 0:00:13]}  f5 {[%clk 0:00:34]} 27. Nh2 {[%clk 0:00:11]}  b4 {[%clk 0:00:32]} 28. Bb2 {[%clk 0:00:09]}  bxc3 {[%clk 0:00:32]} 29. Bxc3 {[%clk 0:00:09]}  Nb5 {[%clk 0:00:33]} 30. gxf5 {[%clk 0:00:09]}  Nxc3 {[%clk 0:00:32]} 31. Ng4 {[%clk 0:00:07]}  Bxd4+ {[%clk 0:00:25]} 32. Kg2 {[%clk 0:00:07]}  Kg7 {[%clk 0:00:23]} 33. Rc6 {[%clk 0:00:07]}  Nd5 {[%clk 0:00:18]} 34. Rc4 {[%clk 0:00:08]}  Bf6 {[%clk 0:00:16]} 35. Re3 {[%clk 0:00:07]}  Nxe3+ {[%clk 0:00:16]} 0-1


[Site "https://www.chess.com"]

[Event "Titled Tuesday Blitz August 22 Early 2023"]
[White "ATM622"]
[Black "KarolKacprzak"]
[WhiteElo "2535"]
[BlackElo "2702"]
[Result "0-1"]
[Round "11"]
[TimeControl "180+1"]
[Date "2023.08.22"]
[WhiteClock "0:00:02"]
[BlackClock "0:00:27"]
[Board "52"]

1. d4 {[%clk 0:03:00]}  Nf6 {[%clk 0:02:58]} 2. c4 {[%clk 0:03:00]}  c5 {[%clk 0:02:55]} 3. d5 {[%clk 0:03:00]}  b5 {[%clk 0:02:56]} 4. cxb5 {[%clk 0:03:01]}  a6 {[%clk 0:02:57]} 5. bxa6 {[%clk 0:03:02]}  Bxa6 {[%clk 0:02:57]} 6. Nc3 {[%clk 0:03:02]}  g6 {[%clk 0:02:58]} 7. e4 {[%clk 0:03:01]}  Bxf1 {[%clk 0:02:59]} 8. Kxf1 {[%clk 0:03:02]}  d6 {[%clk 0:03:00]} 9. Nf3 {[%clk 0:03:00]}  Bg7 {[%clk 0:03:00]} 10. g3 {[%clk 0:03:01]}  O-O {[%clk 0:03:01]} 11. Kg2 {[%clk 0:03:01]}  Nbd7 {[%clk 0:03:02]} 12. Re1 {[%clk 0:03:01]}  Ra6 {[%clk 0:03:02]} 13. Qe2 {[%clk 0:02:57]}  Qa8 {[%clk 0:03:03]} 14. h4 {[%clk 0:02:47]}  e6 {[%clk 0:03:02]} 15. dxe6 {[%clk 0:02:42]}  fxe6 {[%clk 0:03:03]} 16. Ng5 {[%clk 0:02:39]}  d5 {[%clk 0:03:01]} 17. exd5 {[%clk 0:02:30]}  exd5 {[%clk 0:03:02]} 18. Kg1 {[%clk 0:02:30]}  h6 {[%clk 0:02:48]} 19. Nh3 {[%clk 0:02:23]}  d4 {[%clk 0:02:39]} 20. Ne4 {[%clk 0:02:14]}  Kh7 {[%clk 0:01:57]} 21. Qc2 {[%clk 0:00:53]}  Ne5 {[%clk 0:01:44]} 22. Neg5+ {[%clk 0:00:21]}  hxg5 {[%clk 0:01:41]} 23. Nxg5+ {[%clk 0:00:21]}  Kh8 {[%clk 0:01:29]} 24. Rxe5 {[%clk 0:00:21]}  Ng4 {[%clk 0:01:30]} 25. Re2 {[%clk 0:00:19]}  Raf6 {[%clk 0:01:25]} 26. Qe4 {[%clk 0:00:18]}  Qxe4 {[%clk 0:01:00]} 27. Nxe4 {[%clk 0:00:19]}  Re6 {[%clk 0:01:01]} 28. Bf4 {[%clk 0:00:06]}  d3 {[%clk 0:00:55]} 29. Ree1 {[%clk 0:00:06]}  Rfe8 {[%clk 0:00:55]} 30. f3 {[%clk 0:00:05]}  Bxb2 {[%clk 0:00:54]} 31. Rad1 {[%clk 0:00:05]}  c4 {[%clk 0:00:51]} 32. fxg4 {[%clk 0:00:05]}  Rxe4 {[%clk 0:00:52]} 33. Rxe4 {[%clk 0:00:02]}  Rxe4 {[%clk 0:00:53]} 34. Kg2 {[%clk 0:00:03]}  Re2+ {[%clk 0:00:39]} 35. Kf3 {[%clk 0:00:03]}  Bd4 {[%clk 0:00:40]} 36. a4 {[%clk 0:00:02]}  Ra2 {[%clk 0:00:37]} 37. Ke4 {[%clk 0:00:02]}  Bg7 {[%clk 0:00:35]} 38. Kd5 {[%clk 0:00:01]}  Rxa4 {[%clk 0:00:34]} 39. Rb1 {[%clk 0:00:02]}  c3 {[%clk 0:00:32]} 40. h5 {[%clk 0:00:01]}  gxh5 {[%clk 0:00:31]} 41. g5 {[%clk 0:00:01]}  Kh7 {[%clk 0:00:31]} 42. Rb6 {[%clk 0:00:01]}  Ra8 {[%clk 0:00:28]} 43. g6+ {[%clk 0:00:01]}  Kg8 {[%clk 0:00:28]} 44. Be5 {[%clk 0:00:01]}  d2 {[%clk 0:00:27]} 45. Ke6 {[%clk 0:00:01]}  d1=Q {[%clk 0:00:27]} 46. Bxg7 {[%clk 0:00:01]}  Qg4+ {[%clk 0:00:28]} 47. Kf6 {[%clk 0:00:01]}  Qd4+ {[%clk 0:00:25]} 48. Kg5 {[%clk 0:00:01]}  Qxb6 {[%clk 0:00:26]} 49. Kh6 {[%clk 0:00:01]}  Ra6 {[%clk 0:00:26]} 50. g4 {[%clk 0:00:02]}  Qxg6# {[%clk 0:00:27]} 0-1


[Site "https://www.chess.com"]

[Event "Titled Tuesday Blitz August 22 Early 2023"]
[White "Pert, Richard G"]
[Black "Devaev, Alexander"]
[WhiteFideId "404748"]
[BlackFideId "4169395"]
[WhiteElo "2682"]
[BlackElo "2515"]
[Result "1-0"]
[Round "11"]
[TimeControl "180+1"]
[Date "2023.08.22"]
[WhiteClock "0:01:00"]
[BlackClock "0:00:06"]
[Board "54"]

1. d4 {[%clk 0:03:00]}  Nf6 {[%clk 0:02:56]} 2. Bg5 {[%clk 0:03:00]}  Ne4 {[%clk 0:02:55]} 3. Bf4 {[%clk 0:03:00]}  c5 {[%clk 0:02:56]} 4. f3 {[%clk 0:02:59]}  Nf6 {[%clk 0:02:56]} 5. dxc5 {[%clk 0:02:59]}  e6 {[%clk 0:02:48]} 6. Bd6 {[%clk 0:02:58]}  b6 {[%clk 0:02:42]} 7. Bxf8 {[%clk 0:02:41]}  Rxf8 {[%clk 0:02:41]} 8. e4 {[%clk 0:02:39]}  bxc5 {[%clk 0:02:39]} 9. Nc3 {[%clk 0:02:39]}  Qb6 {[%clk 0:02:32]} 10. Nb5 {[%clk 0:02:27]}  d5 {[%clk 0:02:22]} 11. e5 {[%clk 0:02:06]}  Nfd7 {[%clk 0:02:21]} 12. f4 {[%clk 0:02:05]}  Ba6 {[%clk 0:01:37]} 13. a4 {[%clk 0:02:05]}  Bxb5 {[%clk 0:01:32]} 14. axb5 {[%clk 0:01:54]}  g6 {[%clk 0:01:08]} 15. c4 {[%clk 0:01:51]}  d4 {[%clk 0:01:05]} 16. Nf3 {[%clk 0:01:50]}  h6 {[%clk 0:01:01]} 17. Bd3 {[%clk 0:01:49]}  a6 {[%clk 0:00:58]} 18. O-O {[%clk 0:01:48]}  Ra7 {[%clk 0:00:58]} 19. Nd2 {[%clk 0:01:41]}  axb5 {[%clk 0:00:50]} 20. cxb5 {[%clk 0:01:40]}  Ke7 {[%clk 0:00:44]} 21. Nc4 {[%clk 0:01:39]}  Qb7 {[%clk 0:00:39]} 22. Rxa7 {[%clk 0:01:20]}  Qxa7 {[%clk 0:00:39]} 23. Qe1 {[%clk 0:01:20]}  Rh8 {[%clk 0:00:21]} 24. Qh4+ {[%clk 0:01:18]}  Kf8 {[%clk 0:00:21]} 25. Nd6 {[%clk 0:01:11]}  Qb6 {[%clk 0:00:09]} 26. Ra1 {[%clk 0:01:05]}  Kg7 {[%clk 0:00:08]} 27. Qe7 {[%clk 0:01:02]}  Qd8 {[%clk 0:00:06]} 28. Qxf7# {[%clk 0:01:00]} 1-0


[Site "https://www.chess.com"]

[Event "Titled Tuesday Blitz August 22 Early 2023"]
[White "Reprintsev, Alexander"]
[Black "Tregubov, Pavel V."]
[WhiteFideId "14100541"]
[BlackFideId "4115341"]
[WhiteElo "2505"]
[BlackElo "2647"]
[Result "0-1"]
[Round "11"]
[TimeControl "180+1"]
[Date "2023.08.22"]
[WhiteClock "0:00:00"]
[BlackClock "0:00:13"]
[Board "58"]

1. e4 {[%clk 0:03:00]}  c5 {[%clk 0:02:58]} 2. b3 {[%clk 0:02:59]}  Nc6 {[%clk 0:02:57]} 3. Bb2 {[%clk 0:02:59]}  Nf6 {[%clk 0:02:57]} 4. e5 {[%clk 0:02:59]}  Nd5 {[%clk 0:02:56]} 5. Nf3 {[%clk 0:02:53]}  d6 {[%clk 0:02:56]} 6. Bb5 {[%clk 0:02:52]}  Bg4 {[%clk 0:02:43]} 7. h3 {[%clk 0:02:48]}  Bh5 {[%clk 0:02:43]} 8. Qe2 {[%clk 0:02:25]}  e6 {[%clk 0:02:33]} 9. Nc3 {[%clk 0:02:08]}  Nf4 {[%clk 0:02:28]} 10. Qe4 {[%clk 0:02:07]}  Nxg2+ {[%clk 0:02:23]} 11. Kf1 {[%clk 0:01:49]}  d5 {[%clk 0:02:23]} 12. Bxc6+ {[%clk 0:01:48]}  bxc6 {[%clk 0:02:22]} 13. Qa4 {[%clk 0:01:47]}  Bxf3 {[%clk 0:02:11]} 14. Qxc6+ {[%clk 0:01:46]}  Ke7 {[%clk 0:02:11]} 15. Qb7+ {[%clk 0:01:46]}  Qd7 {[%clk 0:02:02]} 16. Qxa8 {[%clk 0:01:46]}  g6 {[%clk 0:02:02]} 17. Qb8 {[%clk 0:01:40]}  Bg7 {[%clk 0:01:54]} 18. Qd6+ {[%clk 0:01:39]}  Qxd6 {[%clk 0:01:55]} 19. exd6+ {[%clk 0:01:39]}  Kd7 {[%clk 0:01:54]} 20. Rg1 {[%clk 0:01:37]}  Nh4 {[%clk 0:01:44]} 21. Na4 {[%clk 0:01:28]}  Bxb2 {[%clk 0:01:41]} 22. Nxb2 {[%clk 0:01:28]}  Kxd6 {[%clk 0:01:41]} 23. Nd3 {[%clk 0:01:26]}  Be4 {[%clk 0:01:37]} 24. Ne1 {[%clk 0:01:24]}  Bf5 {[%clk 0:01:36]} 25. Rg3 {[%clk 0:01:23]}  e5 {[%clk 0:01:29]} 26. d3 {[%clk 0:01:23]}  Be6 {[%clk 0:01:28]} 27. c4 {[%clk 0:01:20]}  Nf5 {[%clk 0:01:24]} 28. Rg1 {[%clk 0:01:10]}  Nd4 {[%clk 0:01:24]} 29. Kg2 {[%clk 0:01:09]}  Ne2 {[%clk 0:01:19]} 30. Rh1 {[%clk 0:01:08]}  Nf4+ {[%clk 0:01:19]} 31. Kg3 {[%clk 0:01:08]}  d4 {[%clk 0:01:16]} 32. Rb1 {[%clk 0:00:55]}  a5 {[%clk 0:01:12]} 33. a3 {[%clk 0:00:53]}  Bf5 {[%clk 0:01:12]} 34. b4 {[%clk 0:00:49]}  cxb4 {[%clk 0:00:44]} 35. axb4 {[%clk 0:00:48]}  Rb8 {[%clk 0:00:42]} 36. b5 {[%clk 0:00:36]}  Nxd3 {[%clk 0:00:35]} 37. Ra1 {[%clk 0:00:32]}  Nb2 {[%clk 0:00:26]} 38. Rxa5 {[%clk 0:00:28]}  Nxc4 {[%clk 0:00:26]} 39. Ra7 {[%clk 0:00:25]}  Be6 {[%clk 0:00:25]} 40. Ng2 {[%clk 0:00:06]}  Rxb5 {[%clk 0:00:24]} 41. Rha1 {[%clk 0:00:06]}  Rb3+ {[%clk 0:00:23]} 42. f3 {[%clk 0:00:07]}  h5 {[%clk 0:00:16]} 43. R1a6+ {[%clk 0:00:06]}  Kc5 {[%clk 0:00:16]} 44. Rc7+ {[%clk 0:00:06]}  Kb4 {[%clk 0:00:14]} 45. Rb7+ {[%clk 0:00:06]}  Kc3 {[%clk 0:00:15]} 46. Rxb3+ {[%clk 0:00:05]}  Kxb3 {[%clk 0:00:15]} 47. h4 {[%clk 0:00:06]}  d3 {[%clk 0:00:14]} 48. Ra1 {[%clk 0:00:02]}  d2 {[%clk 0:00:13]} 49. Rh1 {[%clk 0:00:02]}  Kc2 {[%clk 0:00:13]} 50. Kf2 {[%clk 0:00:00]}  d1=Q {[%clk 0:00:13]} 0-1


[Site "https://www.chess.com"]

[Event "Titled Tuesday Blitz August 22 Early 2023"]
[White "Herman, Daniel"]
[Black "Bodnaruk, Anastasia"]
[WhiteFideId "30935008"]
[BlackFideId "4181751"]
[WhiteElo "2471"]
[BlackElo "2617"]
[Result "1/2-1/2"]
[Round "11"]
[TimeControl "180+1"]
[Date "2023.08.22"]
[WhiteClock "0:00:12"]
[BlackClock "0:00:06"]
[Board "60"]

1. d4 {[%clk 0:03:00]}  Nf6 {[%clk 0:02:59]} 2. c4 {[%clk 0:03:01]}  g6 {[%clk 0:02:59]} 3. Nc3 {[%clk 0:03:01]}  Bg7 {[%clk 0:03:00]} 4. e4 {[%clk 0:03:02]}  d6 {[%clk 0:03:01]} 5. Nf3 {[%clk 0:03:02]}  O-O {[%clk 0:03:01]} 6. h3 {[%clk 0:03:03]}  e5 {[%clk 0:03:01]} 7. d5 {[%clk 0:03:03]}  Na6 {[%clk 0:03:00]} 8. Be3 {[%clk 0:03:01]}  Nh5 {[%clk 0:02:50]} 9. g3 {[%clk 0:02:57]}  f5 {[%clk 0:02:49]} 10. exf5 {[%clk 0:02:51]}  gxf5 {[%clk 0:02:49]} 11. Ng5 {[%clk 0:02:35]}  Qe8 {[%clk 0:02:46]} 12. Be2 {[%clk 0:02:28]}  Nf6 {[%clk 0:02:44]} 13. O-O {[%clk 0:01:53]}  h6 {[%clk 0:02:38]} 14. Ne6 {[%clk 0:01:48]}  Bxe6 {[%clk 0:02:36]} 15. dxe6 {[%clk 0:01:48]}  Qxe6 {[%clk 0:02:35]} 16. f4 {[%clk 0:01:40]}  exf4 {[%clk 0:02:20]} 17. Bxf4 {[%clk 0:01:38]}  Nc5 {[%clk 0:02:18]} 18. Bf3 {[%clk 0:01:37]}  Nfe4 {[%clk 0:02:17]} 19. Nd5 {[%clk 0:01:33]}  Rf7 {[%clk 0:02:09]} 20. b4 {[%clk 0:01:31]}  Na6 {[%clk 0:02:02]} 21. a3 {[%clk 0:01:26]}  c6 {[%clk 0:02:02]} 22. Ne3 {[%clk 0:01:22]}  Bxa1 {[%clk 0:01:57]} 23. Qxa1 {[%clk 0:01:23]}  Nd2 {[%clk 0:01:56]} 24. Bh5 {[%clk 0:01:16]}  Rg7 {[%clk 0:01:46]} 25. Re1 {[%clk 0:00:54]}  Ne4 {[%clk 0:01:29]} 26. Kh2 {[%clk 0:00:35]}  Rf8 {[%clk 0:01:24]} 27. Nc2 {[%clk 0:00:24]}  Qf6 {[%clk 0:01:21]} 28. Nd4 {[%clk 0:00:20]}  c5 {[%clk 0:01:16]} 29. Nb5 {[%clk 0:00:14]}  Qxa1 {[%clk 0:01:09]} 30. Rxa1 {[%clk 0:00:15]}  cxb4 {[%clk 0:01:10]} 31. axb4 {[%clk 0:00:15]}  Nxb4 {[%clk 0:01:10]} 32. Rxa7 {[%clk 0:00:15]}  Nd3 {[%clk 0:01:05]} 33. Bxd6 {[%clk 0:00:12]}  Nxd6 {[%clk 0:01:05]} 34. Nxd6 {[%clk 0:00:13]}  f4 {[%clk 0:01:05]} 35. gxf4 {[%clk 0:00:08]}  Rxf4 {[%clk 0:01:03]} 36. Bg4 {[%clk 0:00:08]}  Ne5 {[%clk 0:00:59]} 37. Ra8+ {[%clk 0:00:08]}  Kh7 {[%clk 0:00:59]} 38. Bf5+ {[%clk 0:00:08]}  Ng6 {[%clk 0:00:55]} 39. Rb8 {[%clk 0:00:08]}  Re7 {[%clk 0:00:45]} 40. c5 {[%clk 0:00:08]}  h5 {[%clk 0:00:34]} 41. Rf8 {[%clk 0:00:06]}  Kh6 {[%clk 0:00:25]} 42. Rf6 {[%clk 0:00:05]}  Rg7 {[%clk 0:00:18]} 43. Nf7+ {[%clk 0:00:05]}  Rxf7 {[%clk 0:00:13]} 44. Rxf7 {[%clk 0:00:06]}  Rc4 {[%clk 0:00:01]} 45. Rf6 {[%clk 0:00:05]}  Kg5 {[%clk 0:00:01]} 46. Rxg6+ {[%clk 0:00:05]}  Kxf5 {[%clk 0:00:02]} 47. Rb6 {[%clk 0:00:06]}  Rxc5 {[%clk 0:00:02]} 48. Rxb7 {[%clk 0:00:07]}  h4 {[%clk 0:00:01]} 49. Rb2 {[%clk 0:00:06]}  Rc3 {[%clk 0:00:01]} 50. Rb5+ {[%clk 0:00:06]}  Kf4 {[%clk 0:00:01]} 51. Rb4+ {[%clk 0:00:07]}  Kf3 {[%clk 0:00:02]} 52. Rxh4 {[%clk 0:00:07]}  Rc2+ {[%clk 0:00:03]} 53. Kg1 {[%clk 0:00:07]}  Kg3 {[%clk 0:00:03]} 54. Rg4+ {[%clk 0:00:08]}  Kxh3 {[%clk 0:00:04]} 55. Rg8 {[%clk 0:00:08]}  Rc4 {[%clk 0:00:03]} 56. Kf2 {[%clk 0:00:09]}  Rf4+ {[%clk 0:00:03]} 57. Ke3 {[%clk 0:00:09]}  Rf6 {[%clk 0:00:03]} 58. Re8 {[%clk 0:00:09]}  Kg4 {[%clk 0:00:03]} 59. Rg8+ {[%clk 0:00:09]}  Kf5 {[%clk 0:00:04]} 60. Rg1 {[%clk 0:00:10]}  Re6+ {[%clk 0:00:04]} 61. Kd3 {[%clk 0:00:10]}  Rd6+ {[%clk 0:00:05]} 62. Kc3 {[%clk 0:00:10]}  Re6 {[%clk 0:00:05]} 63. Kd3 {[%clk 0:00:11]}  Rd6+ {[%clk 0:00:06]} 64. Kc3 {[%clk 0:00:11]}  Re6 {[%clk 0:00:06]} 65. Kd3 {[%clk 0:00:12]} 1/2-1/2


[Site "https://www.chess.com"]

[Event "Titled Tuesday Blitz August 22 Early 2023"]
[White "Arabidze, Meri"]
[Black "Molina, Roberto Junio Brito"]
[WhiteFideId "13604040"]
[BlackFideId "2109450"]
[WhiteElo "2587"]
[BlackElo "2812"]
[Result "1-0"]
[Round "11"]
[TimeControl "180+1"]
[Date "2023.08.22"]
[WhiteClock "0:00:15"]
[BlackClock "0:00:03"]
[Board "64"]

1. d4 {[%clk 0:03:00]}  d5 {[%clk 0:02:52]} 2. Nf3 {[%clk 0:03:00]}  Nf6 {[%clk 0:02:52]} 3. c4 {[%clk 0:03:01]}  c6 {[%clk 0:02:51]} 4. Nc3 {[%clk 0:03:00]}  dxc4 {[%clk 0:02:51]} 5. a4 {[%clk 0:02:59]}  Bf5 {[%clk 0:02:51]} 6. e3 {[%clk 0:02:59]}  e6 {[%clk 0:02:50]} 7. Bxc4 {[%clk 0:02:59]}  Bb4 {[%clk 0:02:50]} 8. O-O {[%clk 0:02:59]}  O-O {[%clk 0:02:50]} 9. h3 {[%clk 0:02:58]}  h6 {[%clk 0:02:50]} 10. Qe2 {[%clk 0:02:56]}  Ne4 {[%clk 0:02:47]} 11. Bd2 {[%clk 0:02:54]}  Nxd2 {[%clk 0:02:46]} 12. Nxd2 {[%clk 0:02:54]}  Nd7 {[%clk 0:02:45]} 13. e4 {[%clk 0:02:53]}  Bg6 {[%clk 0:02:43]} 14. Nf3 {[%clk 0:02:41]}  Bh5 {[%clk 0:02:39]} 15. Rad1 {[%clk 0:02:27]}  Re8 {[%clk 0:02:37]} 16. g4 {[%clk 0:02:11]}  Bg6 {[%clk 0:02:36]} 17. Kg2 {[%clk 0:02:00]}  Qa5 {[%clk 0:02:32]} 18. Nh4 {[%clk 0:01:31]}  Bh7 {[%clk 0:02:20]} 19. Qe3 {[%clk 0:01:30]}  Rad8 {[%clk 0:02:10]} 20. Ne2 {[%clk 0:01:18]}  Nb6 {[%clk 0:01:47]} 21. Bb3 {[%clk 0:01:16]}  c5 {[%clk 0:01:47]} 22. Nf3 {[%clk 0:01:06]}  c4 {[%clk 0:01:30]} 23. Bc2 {[%clk 0:01:04]}  Nd5 {[%clk 0:01:30]} 24. Qc1 {[%clk 0:01:00]}  Ne7 {[%clk 0:01:15]} 25. Ng3 {[%clk 0:00:47]}  a6 {[%clk 0:01:02]} 26. e5 {[%clk 0:00:42]}  Bxc2 {[%clk 0:01:00]} 27. Qxc2 {[%clk 0:00:43]}  b5 {[%clk 0:00:53]} 28. axb5 {[%clk 0:00:42]}  axb5 {[%clk 0:00:54]} 29. h4 {[%clk 0:00:38]}  Nd5 {[%clk 0:00:42]} 30. Qe4 {[%clk 0:00:36]}  Qa8 {[%clk 0:00:37]} 31. g5 {[%clk 0:00:33]}  hxg5 {[%clk 0:00:33]} 32. Nxg5 {[%clk 0:00:34]}  Nf4+ {[%clk 0:00:31]} 33. Kf3 {[%clk 0:00:30]}  Ng6 {[%clk 0:00:24]} 34. h5 {[%clk 0:00:24]}  Nh4+ {[%clk 0:00:13]} 35. Kg4 {[%clk 0:00:23]}  Qxe4+ {[%clk 0:00:12]} 36. N5xe4 {[%clk 0:00:23]}  Nf5 {[%clk 0:00:08]} 37. Nxf5 {[%clk 0:00:24]}  exf5+ {[%clk 0:00:09]} 38. Kxf5 {[%clk 0:00:24]}  Be7 {[%clk 0:00:08]} 39. Rg1 {[%clk 0:00:23]}  Kh7 {[%clk 0:00:09]} 40. Rg3 {[%clk 0:00:17]}  g6+ {[%clk 0:00:08]} 41. hxg6+ {[%clk 0:00:16]}  fxg6+ {[%clk 0:00:09]} 42. Rxg6 {[%clk 0:00:15]}  Rf8+ {[%clk 0:00:09]} 43. Nf6+ {[%clk 0:00:15]}  Bxf6 {[%clk 0:00:09]} 44. Rxf6 {[%clk 0:00:16]}  Rxf6+ {[%clk 0:00:09]} 45. exf6 {[%clk 0:00:17]}  Kg8 {[%clk 0:00:10]} 46. Kg6 {[%clk 0:00:16]}  b4 {[%clk 0:00:09]} 47. Rh1 {[%clk 0:00:15]}  Rd6 {[%clk 0:00:09]} 48. Ra1 {[%clk 0:00:15]}  Rd8 {[%clk 0:00:09]} 49. Ra7 {[%clk 0:00:15]}  c3 {[%clk 0:00:09]} 50. bxc3 {[%clk 0:00:15]}  bxc3 {[%clk 0:00:09]} 51. Rg7+ {[%clk 0:00:15]}  Kf8 {[%clk 0:00:10]} 52. Rh7 {[%clk 0:00:15]}  Kg8 {[%clk 0:00:03]} 53. f7+ {[%clk 0:00:15]} 1-0


[Site "https://www.chess.com"]

[Event "Titled Tuesday Blitz August 22 Early 2023"]
[White "Korchmar, Vasiliy"]
[Black "Kochiev, Ivan"]
[WhiteFideId "24131750"]
[BlackFideId "2917890"]
[WhiteElo "2669"]
[BlackElo "2576"]
[Result "1-0"]
[Round "11"]
[TimeControl "180+1"]
[Date "2023.08.22"]
[WhiteClock "0:01:27"]
[BlackClock "0:00:02"]
[Board "66"]

1. e4 {[%clk 0:03:00]}  c5 {[%clk 0:02:57]} 2. d4 {[%clk 0:03:00]}  cxd4 {[%clk 0:02:57]} 3. Qxd4 {[%clk 0:03:00]}  Nc6 {[%clk 0:02:57]} 4. Qd3 {[%clk 0:03:01]}  g6 {[%clk 0:02:57]} 5. Nc3 {[%clk 0:03:01]}  Bg7 {[%clk 0:02:58]} 6. Nf3 {[%clk 0:03:02]}  Nf6 {[%clk 0:02:59]} 7. Be2 {[%clk 0:03:03]}  d6 {[%clk 0:02:59]} 8. O-O {[%clk 0:03:04]}  Bg4 {[%clk 0:02:59]} 9. Nd5 {[%clk 0:03:03]}  Nd7 {[%clk 0:02:58]} 10. c3 {[%clk 0:03:01]}  O-O {[%clk 0:02:57]} 11. Bg5 {[%clk 0:03:01]}  Nc5 {[%clk 0:02:44]} 12. Qc2 {[%clk 0:03:00]}  Rc8 {[%clk 0:02:39]} 13. Rad1 {[%clk 0:02:59]}  Ne6 {[%clk 0:02:12]} 14. Bh4 {[%clk 0:02:59]}  Bxf3 {[%clk 0:02:10]} 15. Bxf3 {[%clk 0:02:59]}  Qd7 {[%clk 0:01:39]} 16. Qb1 {[%clk 0:02:47]}  Rfe8 {[%clk 0:01:36]} 17. Bg4 {[%clk 0:02:44]}  Ne5 {[%clk 0:01:34]} 18. Bh3 {[%clk 0:02:43]}  g5 {[%clk 0:01:16]} 19. Bxg5 {[%clk 0:02:42]}  Kh8 {[%clk 0:01:02]} 20. f4 {[%clk 0:02:41]}  Nc4 {[%clk 0:00:57]} 21. Bh4 {[%clk 0:02:39]}  Bh6 {[%clk 0:00:21]} 22. f5 {[%clk 0:02:38]}  Ng5 {[%clk 0:00:20]} 23. Bxg5 {[%clk 0:02:38]}  Bxg5 {[%clk 0:00:21]} 24. Nxe7 {[%clk 0:02:33]}  Qxe7 {[%clk 0:00:15]} 25. f6 {[%clk 0:02:32]}  Qc7 {[%clk 0:00:10]} 26. Bxc8 {[%clk 0:02:32]}  Qxc8 {[%clk 0:00:10]} 27. Rf5 {[%clk 0:02:29]}  Rg8 {[%clk 0:00:06]} 28. Rd3 {[%clk 0:02:20]}  Qe6 {[%clk 0:00:03]} 29. Rg3 {[%clk 0:02:11]}  Nd2 {[%clk 0:00:04]} 30. Qd3 {[%clk 0:01:53]}  Nxe4 {[%clk 0:00:04]} 31. Rgf3 {[%clk 0:01:52]}  Nc5 {[%clk 0:00:02]} 32. Qf1 {[%clk 0:01:46]}  h6 {[%clk 0:00:02]} 33. g3 {[%clk 0:01:39]}  Ne4 {[%clk 0:00:02]} 34. Qe2 {[%clk 0:01:34]}  Nc5 {[%clk 0:00:01]} 35. Qxe6 {[%clk 0:01:30]}  Nxe6 {[%clk 0:00:02]} 36. Rd5 {[%clk 0:01:31]}  Rd8 {[%clk 0:00:01]} 37. Rfd3 {[%clk 0:01:31]}  Kg8 {[%clk 0:00:01]} 38. Rxd6 {[%clk 0:01:32]}  Re8 {[%clk 0:00:01]} 39. Rd7 {[%clk 0:01:32]}  Nc5 {[%clk 0:00:02]} 40. Rd8 {[%clk 0:01:32]}  Kf8 {[%clk 0:00:03]} 41. R3d5 {[%clk 0:01:28]}  Bxf6 {[%clk 0:00:02]} 42. Rxe8+ {[%clk 0:01:27]} 1-0


[Site "https://www.chess.com"]